[Event "Titled Tuesday Blitz March 29 Late 2022"]
[White "Koutlas, Nikolaos"]
[Black "De La Colina, Nicolas"]
[WhiteFideId "25827138"]
[BlackFideId "30946921"]
[WhiteElo "1610"]
[BlackElo "2046"]
[Result "1-0"]
[Round "09"]
[TimeControl "180+1"]
[Date "2022.03.30"]
[WhiteClock "0:00:37"]
[BlackClock "0:00:06"]

1. c4 {[%clk 0:03:00]}  g6 {[%clk 0:02:59]} 2. g3 {[%clk 0:03:00]}  Bg7 {[%clk 0:02:59]} 3. Bg2 {[%clk 0:03:00]}  d6 {[%clk 0:03:00]} 4. e4 {[%clk 0:03:01]}  Nf6 {[%clk 0:02:56]} 5. Nc3 {[%clk 0:03:00]}  O-O {[%clk 0:02:56]} 6. Nge2 {[%clk 0:03:01]}  e5 {[%clk 0:02:57]} 7. O-O {[%clk 0:03:01]}  a5 {[%clk 0:02:56]} 8. d3 {[%clk 0:03:00]}  c6 {[%clk 0:02:56]} 9. h3 {[%clk 0:03:00]}  Na6 {[%clk 0:02:54]} 10. f4 {[%clk 0:03:00]}  Bd7 {[%clk 0:02:47]} 11. f5 {[%clk 0:02:54]}  Nc5 {[%clk 0:02:32]} 12. g4 {[%clk 0:02:53]}  b5 {[%clk 0:02:23]} 13. cxb5 {[%clk 0:02:50]}  cxb5 {[%clk 0:02:22]} 14. g5 {[%clk 0:02:50]}  Ne8 {[%clk 0:02:21]} 15. f6 {[%clk 0:02:50]}  Bh8 {[%clk 0:02:21]} 16. Nd5 {[%clk 0:02:50]}  Bxf6 {[%clk 0:01:28]} 17. gxf6 {[%clk 0:02:26]}  Kh8 {[%clk 0:01:26]} 18. Bh6 {[%clk 0:02:12]}  Rg8 {[%clk 0:01:24]} 19. Ne7 {[%clk 0:02:12]}  Nxf6 {[%clk 0:01:24]} 20. Bg5 {[%clk 0:01:57]}  Nh5 {[%clk 0:01:11]} 21. Nxg6+ {[%clk 0:01:42]}  Rxg6 {[%clk 0:01:12]} 22. Bxd8 {[%clk 0:01:40]}  Rxd8 {[%clk 0:01:13]} 23. Kh2 {[%clk 0:01:38]}  Ne6 {[%clk 0:01:01]} 24. Rxf7 {[%clk 0:01:32]}  Nef4 {[%clk 0:00:54]} 25. Nxf4 {[%clk 0:01:29]}  Nxf4 {[%clk 0:00:55]} 26. Rxf4 {[%clk 0:01:17]}  exf4 {[%clk 0:00:53]} 27. Qf3 {[%clk 0:01:17]}  Rdg8 {[%clk 0:00:45]} 28. Rg1 {[%clk 0:01:16]}  Rf8 {[%clk 0:00:44]} 29. Bf1 {[%clk 0:01:14]}  Rgf6 {[%clk 0:00:43]} 30. d4 {[%clk 0:01:13]}  Bc6 {[%clk 0:00:43]} 31. d5 {[%clk 0:01:13]}  Bd7 {[%clk 0:00:40]} 32. Rg5 {[%clk 0:01:07]}  h6 {[%clk 0:00:38]} 33. Rg2 {[%clk 0:01:05]}  Be8 {[%clk 0:00:27]} 34. Rf2 {[%clk 0:00:55]}  b4 {[%clk 0:00:21]} 35. a3 {[%clk 0:00:54]}  Bg6 {[%clk 0:00:21]} 36. axb4 {[%clk 0:00:52]}  axb4 {[%clk 0:00:22]} 37. Bd3 {[%clk 0:00:46]}  Re8 {[%clk 0:00:17]} 38. e5 {[%clk 0:00:40]}  dxe5 {[%clk 0:00:18]} 39. Bxg6 {[%clk 0:00:39]}  Rxg6 {[%clk 0:00:19]} 40. Qe4 {[%clk 0:00:39]}  Rg3 {[%clk 0:00:16]} 41. Rxf4 {[%clk 0:00:39]}  exf4 {[%clk 0:00:08]} 42. Qxe8+ {[%clk 0:00:38]}  Kh7 {[%clk 0:00:07]} 43. Qf7+ {[%clk 0:00:37]}  Kh8 {[%clk 0:00:06]} 44. Qxf4 {[%clk 0:00:37]}  Rb3 {[%clk 0:00:06]} 1-0


[Site "https://www.chess.com"]

[Event "Titled Tuesday Blitz March 29 Late 2022"]
[White "Kujawski, Adam"]
[Black "Dahlgren, James Allen"]
[WhiteFideId "1100920"]
[BlackFideId "22256873"]
[WhiteElo "2053"]
[BlackElo "2122"]
[Result "1-0"]
[Round "09"]
[TimeControl "180+1"]
[Date "2022.03.30"]
[WhiteClock "0:00:14"]
[BlackClock "0:00:01"]

1. e4 {[%clk 0:03:00]}  e6 {[%clk 0:03:00]} 2. d4 {[%clk 0:03:00]}  c5 {[%clk 0:03:00]} 3. d5 {[%clk 0:02:59]}  Nf6 {[%clk 0:02:59]} 4. Nc3 {[%clk 0:02:59]}  d6 {[%clk 0:02:59]} 5. h3 {[%clk 0:02:57]}  g6 {[%clk 0:02:59]} 6. Nf3 {[%clk 0:02:56]}  e5 {[%clk 0:02:54]} 7. Bg5 {[%clk 0:02:51]}  Be7 {[%clk 0:02:54]} 8. Qd2 {[%clk 0:02:43]}  O-O {[%clk 0:02:50]} 9. Bh6 {[%clk 0:02:33]}  Re8 {[%clk 0:02:48]} 10. g4 {[%clk 0:02:33]}  a6 {[%clk 0:02:43]} 11. a4 {[%clk 0:02:32]}  Nbd7 {[%clk 0:02:41]} 12. Ng5 {[%clk 0:02:13]}  Rb8 {[%clk 0:02:29]} 13. f3 {[%clk 0:02:11]}  Qa5 {[%clk 0:02:20]} 14. Ra2 {[%clk 0:01:54]}  Qb4 {[%clk 0:02:10]} 15. h4 {[%clk 0:01:42]}  b5 {[%clk 0:02:07]} 16. axb5 {[%clk 0:01:38]}  axb5 {[%clk 0:02:08]} 17. h5 {[%clk 0:01:34]}  Bb7 {[%clk 0:01:37]} 18. Nxb5 {[%clk 0:00:37]}  Qxd2+ {[%clk 0:01:32]} 19. Kxd2 {[%clk 0:00:38]}  Ra8 {[%clk 0:01:27]} 20. Rxa8 {[%clk 0:00:38]}  Rxa8 {[%clk 0:01:25]} 21. Na3 {[%clk 0:00:38]}  Ba6 {[%clk 0:01:18]} 22. hxg6 {[%clk 0:00:35]}  hxg6 {[%clk 0:01:12]} 23. Nh3 {[%clk 0:00:34]}  Bxf1 {[%clk 0:01:06]} 24. Rxf1 {[%clk 0:00:35]}  Bf8 {[%clk 0:00:57]} 25. Be3 {[%clk 0:00:33]}  Nb6 {[%clk 0:00:51]} 26. Nf2 {[%clk 0:00:32]}  Ra4 {[%clk 0:00:28]} 27. Nd3 {[%clk 0:00:31]}  Nc4+ {[%clk 0:00:08]} 28. Nxc4 {[%clk 0:00:30]}  Rxc4 {[%clk 0:00:09]} 29. b3 {[%clk 0:00:30]}  Rd4 {[%clk 0:00:07]} 30. Bxd4 {[%clk 0:00:30]}  exd4 {[%clk 0:00:07]} 31. Ke2 {[%clk 0:00:30]}  Bh6 {[%clk 0:00:08]} 32. Rh1 {[%clk 0:00:29]}  Kg7 {[%clk 0:00:07]} 33. Nb2 {[%clk 0:00:28]}  Nd7 {[%clk 0:00:08]} 34. Nc4 {[%clk 0:00:27]}  Bf4 {[%clk 0:00:07]} 35. Ra1 {[%clk 0:00:25]}  Kf6 {[%clk 0:00:07]} 36. Ra7 {[%clk 0:00:22]}  Ne5 {[%clk 0:00:07]} 37. Nxe5 {[%clk 0:00:22]}  Bxe5 {[%clk 0:00:07]} 38. Rb7 {[%clk 0:00:20]}  Kg7 {[%clk 0:00:07]} 39. Kd3 {[%clk 0:00:17]}  Kf6 {[%clk 0:00:06]} 40. Kc4 {[%clk 0:00:16]}  Bf4 {[%clk 0:00:01]} 41. Kb5 {[%clk 0:00:15]}  d3 {[%clk 0:00:01]} 42. cxd3 {[%clk 0:00:14]} 1-0


[Site "https://www.chess.com"]

[Event "Titled Tuesday Blitz March 29 Late 2022"]
[White "Lehtosaari, Mauri"]
[Black "Jarocka, Liwia"]
[WhiteFideId "501999"]
[BlackFideId "21807558"]
[WhiteElo "2497"]
[BlackElo "1896"]
[Result "1/2-1/2"]
[Round "09"]
[TimeControl "180+1"]
[Date "2022.03.30"]
[WhiteClock "0:00:21"]
[BlackClock "0:00:27"]

1. d4 {[%clk 0:03:00]}  e6 {[%clk 0:02:55]} 2. Nf3 {[%clk 0:03:01]}  d5 {[%clk 0:02:54]} 3. c3 {[%clk 0:02:59]}  c5 {[%clk 0:02:55]} 4. Bg5 {[%clk 0:03:00]}  Be7 {[%clk 0:02:54]} 5. Bxe7 {[%clk 0:03:00]}  Nxe7 {[%clk 0:02:54]} 6. e3 {[%clk 0:03:00]}  Kf8 {[%clk 0:02:52]} 7. Bd3 {[%clk 0:02:59]}  b6 {[%clk 0:02:52]} 8. Qe2 {[%clk 0:02:56]}  Bb7 {[%clk 0:02:51]} 9. Ne5 {[%clk 0:02:54]}  Nd7 {[%clk 0:02:51]} 10. f4 {[%clk 0:02:54]}  g6 {[%clk 0:02:51]} 11. O-O {[%clk 0:02:53]}  Kg7 {[%clk 0:02:51]} 12. Nd2 {[%clk 0:02:52]}  Re8 {[%clk 0:02:50]} 13. Ndf3 {[%clk 0:02:49]}  f5 {[%clk 0:02:48]} 14. Ng5 {[%clk 0:02:47]}  Ng8 {[%clk 0:02:41]} 15. Bb5 {[%clk 0:02:40]}  Ngf6 {[%clk 0:02:36]} 16. Qf3 {[%clk 0:02:38]}  h6 {[%clk 0:02:33]} 17. Ngf7 {[%clk 0:02:26]}  Qe7 {[%clk 0:02:31]} 18. Qh3 {[%clk 0:02:12]}  h5 {[%clk 0:02:24]} 19. Qg3 {[%clk 0:02:11]}  Nxe5 {[%clk 0:01:42]} 20. Nxe5 {[%clk 0:02:11]}  Ng4 {[%clk 0:01:39]} 21. Bxe8 {[%clk 0:01:59]}  Rxe8 {[%clk 0:01:39]} 22. Nxg4 {[%clk 0:01:52]}  hxg4 {[%clk 0:01:40]} 23. h3 {[%clk 0:01:52]}  gxh3 {[%clk 0:01:39]} 24. Qxh3 {[%clk 0:01:49]}  Rh8 {[%clk 0:01:38]} 25. Qg3 {[%clk 0:01:49]}  Ba6 {[%clk 0:01:36]} 26. Rfe1 {[%clk 0:01:47]}  Bd3 {[%clk 0:01:35]} 27. Kf2 {[%clk 0:01:47]}  Qh4 {[%clk 0:01:29]} 28. Qxh4 {[%clk 0:01:46]}  Rxh4 {[%clk 0:01:29]} 29. Rh1 {[%clk 0:01:46]}  Rxh1 {[%clk 0:01:29]} 30. Rxh1 {[%clk 0:01:47]}  Be4 {[%clk 0:01:25]} 31. Rh2 {[%clk 0:01:40]}  Bb1 {[%clk 0:01:17]} 32. a3 {[%clk 0:01:40]}  Bd3 {[%clk 0:01:17]} 33. Kg3 {[%clk 0:01:40]}  c4 {[%clk 0:01:03]} 34. Kh4 {[%clk 0:01:39]}  Kf6 {[%clk 0:01:03]} 35. g4 {[%clk 0:01:39]}  fxg4 {[%clk 0:00:56]} 36. Kxg4 {[%clk 0:01:40]}  Bf5+ {[%clk 0:00:57]} 37. Kg3 {[%clk 0:01:39]}  Kg7 {[%clk 0:00:57]} 38. Kf2 {[%clk 0:01:35]}  b5 {[%clk 0:00:52]} 39. Ke1 {[%clk 0:01:33]}  a5 {[%clk 0:00:52]} 40. Kd2 {[%clk 0:01:17]}  a4 {[%clk 0:00:51]} 41. Ke2 {[%clk 0:01:05]}  Bd3+ {[%clk 0:00:49]} 42. Kf3 {[%clk 0:01:05]}  Bf5 {[%clk 0:00:49]} 43. Re2 {[%clk 0:01:03]}  Kf6 {[%clk 0:00:44]} 44. e4 {[%clk 0:00:45]}  dxe4+ {[%clk 0:00:41]} 45. Rxe4 {[%clk 0:00:36]}  Bxe4+ {[%clk 0:00:41]} 46. Kxe4 {[%clk 0:00:37]}  Kf7 {[%clk 0:00:41]} 47. d5 {[%clk 0:00:31]}  exd5+ {[%clk 0:00:40]} 48. Kxd5 {[%clk 0:00:32]}  Kf6 {[%clk 0:00:41]} 49. Ke4 {[%clk 0:00:32]}  Ke6 {[%clk 0:00:39]} 50. Ke3 {[%clk 0:00:28]}  Kd5 {[%clk 0:00:34]} 51. Kf3 {[%clk 0:00:27]}  Ke6 {[%clk 0:00:32]} 52. Kg4 {[%clk 0:00:21]}  Kf6 {[%clk 0:00:32]} 53. Kg3 {[%clk 0:00:21]}  Ke6 {[%clk 0:00:31]} 54. Kf3 {[%clk 0:00:19]}  Kf5 {[%clk 0:00:27]} 55. Ke3 {[%clk 0:00:20]}  Kg4 {[%clk 0:00:26]} 56. Ke4 {[%clk 0:00:20]}  Kg3 {[%clk 0:00:26]} 57. Ke3 {[%clk 0:00:20]}  Kg4 {[%clk 0:00:26]} 58. Ke4 {[%clk 0:00:21]}  Kg3 {[%clk 0:00:26]} 59. Ke3 {[%clk 0:00:21]}  Kg4 {[%clk 0:00:27]} 1/2-1/2


[Site "https://www.chess.com"]

[Event "Titled Tuesday Blitz March 29 Late 2022"]
[White "Lewtak, Damian"]
[Black "Manolache, Marius"]
[WhiteFideId "1141724"]
[BlackFideId "1201530"]
[WhiteElo "2362"]
[BlackElo "2389"]
[Result "0-1"]
[Round "09"]
[TimeControl "180+1"]
[Date "2022.03.29"]
[WhiteClock "0:00:07"]
[BlackClock "0:00:20"]

1. a3 {[%clk 0:02:56]}  d5 {[%clk 0:02:58]} 2. Nf3 {[%clk 0:02:55]}  Nf6 {[%clk 0:02:57]} 3. d4 {[%clk 0:02:55]}  Bf5 {[%clk 0:02:56]} 4. c4 {[%clk 0:02:54]}  e6 {[%clk 0:02:56]} 5. Nc3 {[%clk 0:02:54]}  c6 {[%clk 0:02:56]} 6. Bf4 {[%clk 0:02:52]}  Nbd7 {[%clk 0:02:54]} 7. e3 {[%clk 0:02:51]}  h6 {[%clk 0:02:53]} 8. Bd3 {[%clk 0:02:51]}  Bxd3 {[%clk 0:02:52]} 9. Qxd3 {[%clk 0:02:52]}  Nh5 {[%clk 0:02:50]} 10. Be5 {[%clk 0:02:52]}  Nhf6 {[%clk 0:02:48]} 11. Bg3 {[%clk 0:02:51]}  Be7 {[%clk 0:02:45]} 12. O-O {[%clk 0:02:49]}  O-O {[%clk 0:02:43]} 13. h3 {[%clk 0:02:49]}  Re8 {[%clk 0:02:42]} 14. Rad1 {[%clk 0:02:48]}  Bf8 {[%clk 0:02:41]} 15. Rfe1 {[%clk 0:02:48]}  Qa5 {[%clk 0:02:40]} 16. c5 {[%clk 0:02:39]}  Nh5 {[%clk 0:02:29]} 17. Bh2 {[%clk 0:02:32]}  f5 {[%clk 0:02:29]} 18. g4 {[%clk 0:02:31]}  fxg4 {[%clk 0:02:27]} 19. hxg4 {[%clk 0:02:32]}  Nhf6 {[%clk 0:02:25]} 20. g5 {[%clk 0:02:32]}  hxg5 {[%clk 0:02:23]} 21. Nxg5 {[%clk 0:02:31]}  e5 {[%clk 0:02:22]} 22. Qg6 {[%clk 0:02:25]}  Qd8 {[%clk 0:01:53]} 23. e4 {[%clk 0:01:50]}  Re7 {[%clk 0:01:53]} 24. exd5 {[%clk 0:01:39]}  Qe8 {[%clk 0:01:49]} 25. Qxe8 {[%clk 0:01:34]}  Rexe8 {[%clk 0:01:46]} 26. dxe5 {[%clk 0:01:10]}  Nxd5 {[%clk 0:01:45]} 27. Nxd5 {[%clk 0:01:11]}  cxd5 {[%clk 0:01:45]} 28. b4 {[%clk 0:01:09]}  Be7 {[%clk 0:01:44]} 29. Nf3 {[%clk 0:01:07]}  Nf8 {[%clk 0:01:42]} 30. Rxd5 {[%clk 0:00:59]}  a5 {[%clk 0:01:38]} 31. Nd4 {[%clk 0:00:53]}  axb4 {[%clk 0:01:37]} 32. axb4 {[%clk 0:00:54]}  Ra4 {[%clk 0:01:37]} 33. Rb1 {[%clk 0:00:52]}  Kf7 {[%clk 0:01:31]} 34. f4 {[%clk 0:00:50]}  g6 {[%clk 0:01:30]} 35. Rb2 {[%clk 0:00:45]}  Ne6 {[%clk 0:01:28]} 36. Nb5 {[%clk 0:00:44]}  Rb8 {[%clk 0:01:24]} 37. Kg2 {[%clk 0:00:40]}  Ng7 {[%clk 0:01:20]} 38. Bg3 {[%clk 0:00:36]}  Ke6 {[%clk 0:01:16]} 39. Nc7+ {[%clk 0:00:36]}  Kf5 {[%clk 0:01:16]} 40. Rd7 {[%clk 0:00:36]}  Bf8 {[%clk 0:01:15]} 41. Rf7+ {[%clk 0:00:31]}  Kg4 {[%clk 0:01:15]} 42. Rf6 {[%clk 0:00:28]}  Kh5 {[%clk 0:01:03]} 43. Rb1 {[%clk 0:00:18]}  Ra2+ {[%clk 0:00:59]} 44. Bf2 {[%clk 0:00:18]}  Nf5 {[%clk 0:00:53]} 45. Ne6 {[%clk 0:00:18]}  Nh4+ {[%clk 0:00:51]} 46. Kg3 {[%clk 0:00:17]}  Ra3+ {[%clk 0:00:46]} 47. Kh2 {[%clk 0:00:14]}  Ra2 {[%clk 0:00:45]} 48. Rf1 {[%clk 0:00:11]}  Bh6 {[%clk 0:00:40]} 49. Kg3 {[%clk 0:00:10]}  Rba8 {[%clk 0:00:38]} 50. Be3 {[%clk 0:00:01]}  R8a3 {[%clk 0:00:37]} 51. Re1 {[%clk 0:00:02]}  Rg2+ {[%clk 0:00:32]} 52. Kh3 {[%clk 0:00:02]}  Rb2 {[%clk 0:00:27]} 53. Ng5 {[%clk 0:00:02]}  Bxg5 {[%clk 0:00:23]} 54. fxg5 {[%clk 0:00:03]}  Rbb3 {[%clk 0:00:23]} 55. Rf7 {[%clk 0:00:04]}  Rxe3+ {[%clk 0:00:22]} 56. Rxe3 {[%clk 0:00:05]}  Rxe3+ {[%clk 0:00:22]} 57. Kh2 {[%clk 0:00:06]}  Kg4 {[%clk 0:00:22]} 58. Rxb7 {[%clk 0:00:06]}  Re2+ {[%clk 0:00:22]} 59. Kg1 {[%clk 0:00:06]}  Kg3 {[%clk 0:00:22]} 60. Rf7 {[%clk 0:00:06]}  Nf3+ {[%clk 0:00:21]} 61. Rxf3+ {[%clk 0:00:06]}  Kxf3 {[%clk 0:00:21]} 62. c6 {[%clk 0:00:07]}  Rxe5 {[%clk 0:00:20]} 63. b5 {[%clk 0:00:07]}  Rxb5 {[%clk 0:00:20]} 0-1


[Site "https://www.chess.com"]

[Event "Titled Tuesday Blitz March 29 Late 2022"]
[White "Martinez Alcantara, Jose Eduardo"]
[Black "Smirnov, Pavel"]
[WhiteFideId "3805662"]
[BlackFideId "4123425"]
[WhiteElo "2690"]
[BlackElo "2545"]
[Result "1-0"]
[Round "09"]
[TimeControl "180+1"]
[Date "2022.03.29"]
[WhiteClock "0:00:11"]
[BlackClock "0:00:01"]

1. e4 {[%clk 0:03:00]}  e5 {[%clk 0:02:59]} 2. Nf3 {[%clk 0:03:00]}  Nc6 {[%clk 0:03:00]} 3. Bb5 {[%clk 0:03:00]}  a6 {[%clk 0:02:59]} 4. Ba4 {[%clk 0:03:00]}  Nf6 {[%clk 0:02:59]} 5. d3 {[%clk 0:03:01]}  d6 {[%clk 0:02:58]} 6. c3 {[%clk 0:03:01]}  Be7 {[%clk 0:02:58]} 7. O-O {[%clk 0:03:01]}  O-O {[%clk 0:02:58]} 8. Nbd2 {[%clk 0:03:00]}  b5 {[%clk 0:02:59]} 9. Bb3 {[%clk 0:02:59]}  Na5 {[%clk 0:02:59]} 10. Bc2 {[%clk 0:03:00]}  c5 {[%clk 0:02:59]} 11. d4 {[%clk 0:02:59]}  exd4 {[%clk 0:02:51]} 12. cxd4 {[%clk 0:03:00]}  Bg4 {[%clk 0:02:51]} 13. d5 {[%clk 0:02:56]}  Nd7 {[%clk 0:02:49]} 14. h3 {[%clk 0:02:56]}  Bh5 {[%clk 0:02:49]} 15. Re1 {[%clk 0:02:53]}  Re8 {[%clk 0:02:48]} 16. b3 {[%clk 0:02:40]}  Bf6 {[%clk 0:02:46]} 17. Rb1 {[%clk 0:02:40]}  Bc3 {[%clk 0:02:44]} 18. g4 {[%clk 0:02:22]}  Bg6 {[%clk 0:02:43]} 19. Re3 {[%clk 0:02:23]}  b4 {[%clk 0:02:41]} 20. Nf1 {[%clk 0:02:11]}  c4 {[%clk 0:02:36]} 21. Ng3 {[%clk 0:02:06]}  Nc5 {[%clk 0:02:36]} 22. Bd2 {[%clk 0:01:58]}  Bxd2 {[%clk 0:02:31]} 23. Qxd2 {[%clk 0:01:59]}  Rb8 {[%clk 0:02:25]} 24. Qd4 {[%clk 0:01:52]}  c3 {[%clk 0:02:08]} 25. h4 {[%clk 0:01:31]}  h6 {[%clk 0:02:03]} 26. Kh2 {[%clk 0:01:30]}  Nd7 {[%clk 0:01:58]} 27. a3 {[%clk 0:01:14]}  bxa3 {[%clk 0:01:57]} 28. Rxc3 {[%clk 0:01:13]}  Rc8 {[%clk 0:01:42]} 29. Ra1 {[%clk 0:00:54]}  Qf6 {[%clk 0:01:41]} 30. Qxf6 {[%clk 0:00:34]}  Nxf6 {[%clk 0:01:40]} 31. Rxc8 {[%clk 0:00:35]}  Rxc8 {[%clk 0:01:37]} 32. Nd4 {[%clk 0:00:36]}  Nxg4+ {[%clk 0:01:34]} 33. Kg2 {[%clk 0:00:35]}  Rc3 {[%clk 0:00:46]} 34. h5 {[%clk 0:00:36]}  Bh7 {[%clk 0:00:27]} 35. Rxa3 {[%clk 0:00:36]}  Nb7 {[%clk 0:00:16]} 36. Rxa6 {[%clk 0:00:36]}  Rc8 {[%clk 0:00:14]} 37. Nc6 {[%clk 0:00:33]}  Kf8 {[%clk 0:00:13]} 38. b4 {[%clk 0:00:32]}  Ne5 {[%clk 0:00:12]} 39. f4 {[%clk 0:00:19]}  Nc4 {[%clk 0:00:10]} 40. Kf2 {[%clk 0:00:17]}  Nd8 {[%clk 0:00:07]} 41. b5 {[%clk 0:00:15]}  Nb7 {[%clk 0:00:05]} 42. f5 {[%clk 0:00:14]}  Nc5 {[%clk 0:00:05]} 43. Ra7 {[%clk 0:00:13]}  f6 {[%clk 0:00:04]} 44. Ne2 {[%clk 0:00:12]}  Bg8 {[%clk 0:00:03]} 45. Nf4 {[%clk 0:00:12]}  Ne5 {[%clk 0:00:03]} 46. Ne6+ {[%clk 0:00:09]}  Bxe6 {[%clk 0:00:02]} 47. fxe6 {[%clk 0:00:10]}  Nxc6 {[%clk 0:00:01]} 48. bxc6 {[%clk 0:00:11]} 1-0


[Site "https://www.chess.com"]

[Event "Titled Tuesday Blitz March 29 Late 2022"]
[White "Moral Garcia, Serafin"]
[Black "Hjartarson, Johann"]
[WhiteFideId "2201925"]
[BlackFideId "2300044"]
[WhiteElo "2228"]
[BlackElo "2450"]
[Result "0-1"]
[Round "09"]
[TimeControl "180+1"]
[Date "2022.03.29"]
[WhiteClock "0:00:44"]
[BlackClock "0:01:13"]

1. e4 {[%clk 0:02:57]}  g6 {[%clk 0:02:59]} 2. d4 {[%clk 0:02:57]}  Bg7 {[%clk 0:02:59]} 3. Nc3 {[%clk 0:02:56]}  d6 {[%clk 0:03:00]} 4. f4 {[%clk 0:02:56]}  a6 {[%clk 0:02:58]} 5. Nf3 {[%clk 0:02:54]}  b5 {[%clk 0:02:59]} 6. Bd3 {[%clk 0:02:54]}  Nd7 {[%clk 0:02:57]} 7. Qe2 {[%clk 0:02:54]}  c5 {[%clk 0:02:56]} 8. dxc5 {[%clk 0:02:48]}  Nxc5 {[%clk 0:02:54]} 9. O-O {[%clk 0:02:47]}  Bb7 {[%clk 0:02:52]} 10. Nd5 {[%clk 0:02:34]}  Bxd5 {[%clk 0:02:47]} 11. exd5 {[%clk 0:02:33]}  Nf6 {[%clk 0:02:47]} 12. c4 {[%clk 0:02:25]}  O-O {[%clk 0:02:42]} 13. cxb5 {[%clk 0:02:19]}  Nxd5 {[%clk 0:02:40]} 14. bxa6 {[%clk 0:02:16]}  Qb6 {[%clk 0:02:33]} 15. Kh1 {[%clk 0:02:14]}  Nxd3 {[%clk 0:02:30]} 16. Qxd3 {[%clk 0:02:13]}  Nb4 {[%clk 0:02:30]} 17. Qb3 {[%clk 0:02:08]}  Qxa6 {[%clk 0:02:27]} 18. Bd2 {[%clk 0:01:55]}  Nd3 {[%clk 0:02:24]} 19. Bc3 {[%clk 0:01:50]}  Rab8 {[%clk 0:02:14]} 20. Qd5 {[%clk 0:01:34]}  e6 {[%clk 0:02:10]} 21. Qe4 {[%clk 0:01:20]}  d5 {[%clk 0:02:05]} 22. Qe3 {[%clk 0:01:14]}  Nxb2 {[%clk 0:01:56]} 23. Bxg7 {[%clk 0:01:14]}  Kxg7 {[%clk 0:01:54]} 24. Rfe1 {[%clk 0:01:05]}  Nc4 {[%clk 0:01:50]} 25. Qd4+ {[%clk 0:01:05]}  Kg8 {[%clk 0:01:50]} 26. h4 {[%clk 0:01:01]}  Qb6 {[%clk 0:01:34]} 27. Qf6 {[%clk 0:00:59]}  Qb2 {[%clk 0:01:32]} 28. Ne5 {[%clk 0:00:55]}  Nxe5 {[%clk 0:01:19]} 29. fxe5 {[%clk 0:00:55]}  Rb4 {[%clk 0:01:18]} 30. h5 {[%clk 0:00:50]}  Rg4 {[%clk 0:01:15]} 31. Rg1 {[%clk 0:00:44]}  Qd4 {[%clk 0:01:13]} 0-1


[Site "https://www.chess.com"]

[Event "Titled Tuesday Blitz March 29 Late 2022"]
[White "Nazari, Arad"]
[Black "Dreev, Aleksey"]
[WhiteFideId "12577324"]
[BlackFideId "4100107"]
[WhiteElo "2120"]
[BlackElo "2625"]
[Result "1/2-1/2"]
[Round "09"]
[TimeControl "180+1"]
[Date "2022.03.29"]
[WhiteClock "0:00:16"]
[BlackClock "0:00:06"]

1. e4 {[%clk 0:02:52]}  c5 {[%clk 0:02:59]} 2. Nf3 {[%clk 0:02:52]}  e6 {[%clk 0:02:59]} 3. d3 {[%clk 0:02:50]}  d5 {[%clk 0:02:58]} 4. Nbd2 {[%clk 0:02:50]}  Nc6 {[%clk 0:02:58]} 5. g3 {[%clk 0:02:49]}  Bd6 {[%clk 0:02:48]} 6. Bg2 {[%clk 0:02:49]}  Nge7 {[%clk 0:02:48]} 7. O-O {[%clk 0:02:49]}  Bc7 {[%clk 0:02:48]} 8. c3 {[%clk 0:02:44]}  b6 {[%clk 0:02:46]} 9. Qe2 {[%clk 0:02:43]}  O-O {[%clk 0:02:44]} 10. h4 {[%clk 0:02:41]}  Ba6 {[%clk 0:02:43]} 11. c4 {[%clk 0:02:37]}  Nb4 {[%clk 0:02:37]} 12. a3 {[%clk 0:02:33]}  Nc2 {[%clk 0:02:33]} 13. Ra2 {[%clk 0:02:21]}  Nc6 {[%clk 0:02:32]} 14. b4 {[%clk 0:02:09]}  N2d4 {[%clk 0:02:27]} 15. Nxd4 {[%clk 0:02:09]}  Nxd4 {[%clk 0:02:26]} 16. Qd1 {[%clk 0:02:04]}  dxc4 {[%clk 0:02:26]} 17. Nxc4 {[%clk 0:01:56]}  b5 {[%clk 0:02:20]} 18. Ne3 {[%clk 0:01:50]}  Bb6 {[%clk 0:02:20]} 19. Nc2 {[%clk 0:01:35]}  Bb7 {[%clk 0:02:12]} 20. Nxd4 {[%clk 0:01:33]}  cxd4 {[%clk 0:02:12]} 21. Bf4 {[%clk 0:01:13]}  Rc8 {[%clk 0:02:09]} 22. Rc2 {[%clk 0:01:07]}  Rc3 {[%clk 0:02:07]} 23. Qd2 {[%clk 0:00:41]}  Rxa3 {[%clk 0:02:05]} 24. Rfc1 {[%clk 0:00:40]}  Rc3 {[%clk 0:01:31]} 25. Rxc3 {[%clk 0:00:36]}  dxc3 {[%clk 0:01:32]} 26. Qxc3 {[%clk 0:00:37]}  Qd7 {[%clk 0:01:30]} 27. Qa3 {[%clk 0:00:28]}  Rc8 {[%clk 0:01:24]} 28. Rxc8+ {[%clk 0:00:27]}  Qxc8 {[%clk 0:01:24]} 29. Qc1 {[%clk 0:00:27]}  Qxc1+ {[%clk 0:01:17]} 30. Bxc1 {[%clk 0:00:28]}  a5 {[%clk 0:01:17]} 31. bxa5 {[%clk 0:00:28]}  Bxa5 {[%clk 0:01:18]} 32. Kf1 {[%clk 0:00:26]}  Bc3 {[%clk 0:01:18]} 33. Ke2 {[%clk 0:00:25]}  b4 {[%clk 0:01:18]} 34. Bd2 {[%clk 0:00:25]}  Bxd2 {[%clk 0:01:02]} 35. Kxd2 {[%clk 0:00:26]}  Bc6 {[%clk 0:00:55]} 36. d4 {[%clk 0:00:24]}  Kf8 {[%clk 0:00:52]} 37. d5 {[%clk 0:00:24]}  exd5 {[%clk 0:00:47]} 38. exd5 {[%clk 0:00:25]}  Bb5 {[%clk 0:00:36]} 39. Be4 {[%clk 0:00:25]}  h6 {[%clk 0:00:29]} 40. Kc2 {[%clk 0:00:20]}  Bc4 {[%clk 0:00:15]} 41. d6 {[%clk 0:00:21]}  Ke8 {[%clk 0:00:16]} 42. Bc6+ {[%clk 0:00:20]}  Kd8 {[%clk 0:00:16]} 43. f4 {[%clk 0:00:17]}  Be6 {[%clk 0:00:16]} 44. Kb2 {[%clk 0:00:16]}  f6 {[%clk 0:00:16]} 45. Kc2 {[%clk 0:00:16]}  Bd7 {[%clk 0:00:16]} 46. Bd5 {[%clk 0:00:15]}  Ba4+ {[%clk 0:00:16]} 47. Bb3 {[%clk 0:00:13]}  Bxb3+ {[%clk 0:00:13]} 48. Kxb3 {[%clk 0:00:14]}  Kd7 {[%clk 0:00:13]} 49. Kxb4 {[%clk 0:00:14]}  Kxd6 {[%clk 0:00:14]} 50. Kc4 {[%clk 0:00:15]}  Ke6 {[%clk 0:00:15]} 51. g4 {[%clk 0:00:15]}  h5 {[%clk 0:00:14]} 52. gxh5 {[%clk 0:00:13]}  Kf5 {[%clk 0:00:15]} 53. Kd5 {[%clk 0:00:13]}  Kxf4 {[%clk 0:00:10]} 54. Ke6 {[%clk 0:00:14]}  Kg4 {[%clk 0:00:11]} 55. h6 {[%clk 0:00:14]}  gxh6 {[%clk 0:00:07]} 56. Kxf6 {[%clk 0:00:15]}  h5 {[%clk 0:00:06]} 57. Ke5 {[%clk 0:00:15]}  Kxh4 {[%clk 0:00:06]} 58. Kf4 {[%clk 0:00:16]}  Kh3 {[%clk 0:00:06]} 59. Kf3 {[%clk 0:00:17]}  h4 {[%clk 0:00:05]} 60. Kf2 {[%clk 0:00:18]}  Kg4 {[%clk 0:00:05]} 61. Kg2 {[%clk 0:00:18]}  h3+ {[%clk 0:00:06]} 62. Kh2 {[%clk 0:00:17]}  Kh4 {[%clk 0:00:06]} 63. Kh1 {[%clk 0:00:16]} 1/2-1/2


[Site "https://www.chess.com"]